fUSD/lending_fUSD_20251027
["ID","MTS","AMOUNT","RATE_DAILY","PERIOD"]
[392493204,1761562241621,-500.0,0.00037173,5]
[392493205,1761562241631,-500.0,0.00037173,5]
[392493206,1761562241640,-327.50826095,0.00037173,5]
[392493207,1761562241649,-501.66177155,0.00037173,5]
[392493208,1761562241658,-500.0,0.00037173,5]
[392493209,1761562241668,-200.0,0.00037173,5]
[392493210,1761562241677,-500.0,0.00037173,5]
[392493211,1761562241686,-151.33444593,0.00037173,5]
[392493212,1761562241695,-500.0,0.00037174,2]
[392493213,1761562241705,-500.0,0.00037174,7]
[392493214,1761562241714,-500.0,0.00037174,2]
[392493215,1761562241723,-150.92,0.00037175,2]
[392493216,1761562241732,-192.24588975,0.00037178,7]
[392493217,1761562241741,-158.70334469,0.00037178,7]
[392493218,1761562241751,-162.90586814,0.00037178,7]
[392493219,1761562241762,-170.60724563,0.00037178,7]
[392493220,1761562241772,-159.51751846,0.00037178,7]
[392493221,1761562241782,-165.11466939,0.00037178,7]
[392493222,1761562241791,-2789.0,0.00037178,120]
[392493223,1761562241800,-177.0,0.00037178,120]
[392493224,1761562241810,-999.0,0.00037184,120]
[392493225,1761562241889,-302321.342341,0.00037185,4]
[392493226,1761562241907,-469989.805526,0.00037185,4]
[392493227,1761562241917,-151.0,0.00037185,31]
[392493228,1761562241926,-160.0,0.00037185,31]
[392493229,1761562241935,-151.0,0.00037185,31]
[392493230,1761562241944,-151.0,0.00037185,31]
[392493231,1761562241953,-151.0,0.00037185,31]
[392493232,1761562241963,-151.0,0.00037185,31]
[392493233,1761562241973,-151.0,0.00037185,31]
[392493234,1761562241983,-156.685551,0.00037185,31]
[392493235,1761562241994,-151.0,0.00037185,31]
[392493236,1761562242004,-162.707354,0.00037185,31]
[392493237,1761562242013,-154.039224,0.00037185,31]
[392493238,1761562242022,-153.713462,0.00037185,31]
[392493239,1761562242031,-151.0,0.00037185,31]
[392493240,1761562242041,-168.421346,0.00037185,31]
[392493241,1761562242050,-151.0,0.00037185,31]
[392493242,1761562242059,-153.463115,0.00037185,31]
[392493243,1761562242069,-151.0,0.00037185,31]
[392493244,1761562242078,-265.258628,0.00037185,5]
[392493245,1761562242086,-152.414099,0.00037185,31]
[392493246,1761562242096,-152.179705,0.00037185,31]
[392493247,1761562242104,-151.0,0.00037185,31]
[392493248,1761562242113,-156.867739,0.00037185,31]
[392493249,1761562242123,-151.0,0.00037185,31]
[392493250,1761562242132,-151.0,0.00037185,31]
[392493251,1761562242142,-151.0,0.00037185,31]
[392493252,1761562242152,-153.121792,0.00037185,31]
[392493253,1761562242163,-167.584442,0.00037185,31]
[392493254,1761562242172,-151.0,0.00037185,31]
[392493255,1761562242183,-151.0,0.00037185,31]
[392493256,1761562242192,-155.469172,0.00037185,31]
[392493257,1761562242202,-151.0,0.00037185,30]
[392493258,1761562242211,-153.182399,0.00037185,31]
[392493259,1761562242220,-151.0,0.00037185,31]
[392493260,1761562242232,-151.0,0.00037185,31]
[392493261,1761562242241,-153.174234,0.00037185,31]
[392493262,1761562242250,-151.0,0.00037185,31]
[392493263,1761562242259,-151.0,0.00037185,15]
[392493264,1761562242269,-151.0,0.00037185,31]
[392493265,1761562242278,-187.426162,0.00037185,15]
[392493266,1761562242287,-153.529015,0.00037185,31]
[392493268,1761562242296,-153.094715,0.00037185,31]
[392493269,1761562242305,-159.271166,0.00037185,31]
[392493270,1761562242314,-151.0,0.00037185,31]
[392493271,1761562242323,-153.90599,0.00037185,31]
[392493272,1761562242332,-153.759784,0.00037185,31]
[392493273,1761562242341,-151.0,0.00037185,31]
[392493274,1761562242351,-151.0,0.00037185,31]
[392493275,1761562242361,-151.0,0.00037185,31]
[392493276,1761562242372,-151.0,0.00037185,31]
[392493277,1761562242381,-157.524906,0.00037185,31]
[392493278,1761562242390,-151.0,0.00037185,31]
[392493279,1761562242399,-171.957658,0.00037185,31]
[392493280,1761562242412,-171.957658,0.00037185,31]
[392493281,1761562242428,-171.957658,0.00037185,31]
[392493282,1761562242437,-171.957658,0.00037185,31]
[392493283,1761562242448,-171.957658,0.00037185,31]
[392493284,1761562242457,-171.957658,0.00037185,31]
[392493285,1761562242467,-171.957658,0.00037185,31]
[392493286,1761562242477,-171.957658,0.00037185,31]
[392493287,1761562242487,-151.0,0.00037185,31]
[392493288,1761562242496,-155.963285,0.00037185,31]
[392493289,1761562242506,-246.16645,0.00037185,31]
[392493290,1761562242515,-246.16645,0.00037185,31]
[392493291,1761562242524,-1229.551753,0.00037185,31]
[392493292,1761562242533,-246.16645,0.00037185,31]
[392493293,1761562242542,-230.535301,0.00037185,31]
[392493294,1761562242552,-151.0,0.00037185,31]
[392493295,1761562242561,-1229.551753,0.00037185,31]
[392493296,1761562242570,-246.16645,0.00037185,31]
[392493297,1761562242579,-151.0,0.00037185,31]
[392493298,1761562242589,-189.752247,0.00037185,31]
[392493299,1761562242598,-1229.551753,0.00037185,31]
[392493300,1761562242607,-1229.551753,0.00037185,31]
[392493301,1761562242616,-246.16645,0.00037185,31]
[392493302,1761562242626,-246.16645,0.00037185,31]
[392493303,1761562242636,-1229.551753,0.00037185,31]
[392493304,1761562242645,-246.16645,0.00037185,31]
[392493305,1761562242654,-1229.551753,0.00037185,31]
[392493306,1761562242663,-151.0,0.00037185,31]
[392493307,1761562242672,-246.16645,0.00037185,31]
[392493308,1761562242681,-151.0,0.00037185,31]
[392493309,1761562242690,-1229.551753,0.00037185,31]
[392493310,1761562242699,-1229.551753,0.00037185,31]
[392493311,1761562242709,-151.0,0.00037185,31]
[392493312,1761562242718,-151.0,0.00037185,31]
[392493313,1761562242728,-151.0,0.00037185,31]
[392493314,1761562242738,-151.0,0.00037185,31]
[392493315,1761562242747,-151.0,0.00037185,31]
[392493316,1761562242756,-151.0,0.00037185,31]
[392493317,1761562242765,-237.9826,0.00037185,31]
[392493318,1761562242775,-237.9826,0.00037185,31]
[392493319,1761562242784,-151.0,0.00037185,31]
[392493320,1761562242793,-151.0,0.00037185,31]
[392493321,1761562242802,-1030.725783,0.00037185,30]
[392493322,1761562242813,-1030.725783,0.00037185,30]
[392493323,1761562242822,-237.9826,0.00037185,31]
[392493324,1761562242832,-237.9826,0.00037185,31]
[392493325,1761562242841,-1030.725783,0.00037185,30]
[392493326,1761562242851,-1030.725783,0.00037185,30]
[392493327,1761562242861,-237.9826,0.00037185,31]
[392493328,1761562242870,-237.9826,0.00037185,31]
[392493329,1761562242880,-1030.725783,0.00037185,30]
[392493330,1761562242889,-1030.725783,0.00037185,30]
[392493331,1761562242898,-237.9826,0.00037185,31]
[392493332,1761562242907,-1030.725783,0.00037185,30]
[392493333,1761562242916,-463.803154,0.00037185,31]
[392493334,1761562242926,-1030.725783,0.00037185,30]
[392493335,1761562242935,-237.9826,0.00037185,31]
[392493336,1761562242944,-463.803154,0.00037185,31]
[392493337,1761562242953,-463.803154,0.00037185,31]
[392493338,1761562242963,-463.803154,0.00037185,31]
[392493339,1761562242972,-263.890293,0.00037185,31]
[392493340,1761562242982,-263.890293,0.00037185,31]
[392493341,1761562242991,-463.803154,0.00037185,31]
[392493342,1761562243000,-463.803154,0.00037185,31]
[392493343,1761562243010,-151.0,0.00037185,31]
[392493344,1761562243019,-263.890293,0.00037185,31]
[392493345,1761562243029,-263.890293,0.00037185,31]
[392493346,1761562243038,-151.0,0.00037185,31]
[392493347,1761562243047,-263.890293,0.00037185,31]
[392493348,1761562243057,-463.803154,0.00037185,31]
[392493349,1761562243066,-263.890293,0.00037185,31]
[392493350,1761562243080,-151.0,0.00037185,31]
[392493351,1761562243094,-463.803154,0.00037185,31]
[392493352,1761562243109,-151.0,0.00037185,31]
[392493353,1761562243118,-263.890293,0.00037185,31]
[392493354,1761562243204,-263.890293,0.00037185,31]
[392493355,1761562243214,-151.0,0.00037185,31]
[392493356,1761562243225,-151.0,0.00037185,31]
[392493357,1761562243234,-151.0,0.00037185,31]
[392493358,1761562243245,-151.0,0.00037185,31]
[392493359,1761562243255,-151.0,0.00037185,31]
[392493360,1761562243264,-151.0,0.00037185,31]
[392493361,1761562243273,-151.0,0.00037185,31]
[392493362,1761562243283,-155.101611,0.00037185,31]
[392493363,1761562243292,-151.0,0.00037185,31]
[392493364,1761562243301,-151.0,0.00037185,31]
[392493365,1761562243310,-151.0,0.00037185,31]
[392493366,1761562243319,-151.0,0.00037185,31]
[392493367,1761562243328,-151.0,0.00037185,31]
[392493368,1761562243337,-151.0,0.00037185,31]
[392493369,1761562243347,-157.961198,0.00037185,31]
[392493370,1761562243356,-151.0,0.00037185,31]
[392493371,1761562243365,-157.961198,0.00037185,31]
[392493372,1761562243374,-151.0,0.00037185,31]
[392493373,1761562243383,-157.961198,0.00037185,31]
[392493374,1761562243392,-157.961198,0.00037185,31]
[392493375,1761562243401,-157.961198,0.00037185,31]
[392493376,1761562243415,-157.961198,0.00037185,31]
[392493377,1761562243423,-151.0,0.00037185,31]
[392493378,1761562243432,-157.961198,0.00037185,31]
[392493379,1761562243441,-151.0,0.00037185,31]
[392493380,1761562243450,-157.961198,0.00037185,31]
[392493381,1761562243459,-151.0,0.00037185,31]
[392493382,1761562243469,-677.43752035,0.00037194,10]
[392493383,1761562243478,-500.0,0.00037194,28]
[392493384,1761562243489,-500.0,0.00037194,28]
[392493385,1761562243498,-500.0,0.00037194,28]
[392493386,1761562243507,-500.0,0.00037194,28]
[392493387,1761562243516,-500.0,0.00037194,28]
[392493388,1761562243526,-534.09559345,0.00037194,28]
[392493389,1761562243535,-500.0,0.00037194,2]
[392493390,1761562243545,-500.0,0.00037194,2]
[392493391,1761562243553,-608.57263053,0.00037194,2]
[392493392,1761562243563,-500.0,0.00037194,7]
[392493393,1761562243571,-500.0,0.00037194,7]
[392493394,1761562243580,-500.0,0.00037194,2]
[392493395,1761562243590,-214.65159289,0.00037194,2]
[392493396,1761562243599,-7903.87255301,0.00037195,31]
[392493397,1761562243609,-2562084.98974703,0.00037195,50]
[392493398,1761562243619,-1968561.46480592,0.00037195,50]
[392493399,1761562244302,-340.981756,0.00037185,31]
[392493400,1761562244313,-340.981756,0.00037185,31]
[392493401,1761562244324,-39.05260802,0.00037185,31]
[392493402,1761562244940,-301.92914798,0.00037185,31]
[392493403,1761562244958,-134000.18294683,0.00037195,50]
[392493404,1761562245016,-98.39202008,0.00037185,31]
[392493407,1761562245522,-242.58973592,0.00037185,31]
[392493408,1761562245538,-340.981756,0.00037185,31]
[392493409,1761562245551,-340.981756,0.00037185,31]
[392493410,1761562245566,-340.981756,0.00037185,31]
[392493411,1761562245581,-338.65539923,0.00037195,50]
[392493412,1761562245622,-6608.3726639,0.00037195,50]
[392493413,1761562245729,-340.981756,0.00037185,31]
[392493414,1761562245739,-11662.410683,0.00037195,50]
[392493415,1761562245837,-460.01000072,0.00037195,50]
[392493416,1761562245848,-6614.29163766,0.00037195,50]
[392493417,1761562245860,-11840.40863351,0.00037195,50]
[392493418,1761562263985,290.0567365,0.00032,120]
[392493419,1761562264700,290.0567365,0.00033,120]
[392493420,1761562270452,2000.0,0.00031,2]
[392493422,1761562335014,500.0,0.00012,2]
[392493423,1761562335140,500.0,0.00012,2]
[392493424,1761562335536,922.59848915,0.00012,2]
[392493425,1761562337741,500.0,0.00012,2]
[392493426,1761562339483,500.0,0.00012,2]
[392493427,1761562342468,500.0,0.00012,2]
[392493428,1761562342883,500.0,0.00012,2]
[392493429,1761562346047,606.83847559,0.00012,2]
[392493430,1761562346286,181.9775457,0.00012,2]
[392493431,1761562348804,518.50524961,0.00012,2]
[392493440,1761562419888,-305.70611207,0.00024932,2]
[392493442,1761562546905,161.0,0.00021,3]
[392493443,1761562551103,161.0,0.00021,3]
[392493445,1761562649228,500.0,0.00012,2]
[392493446,1761562649434,500.0,0.00012,2]
[392493447,1761562650188,500.0,0.00012,2]
[392493448,1761562702780,905.0,0.00037216,120]
[392493449,1761562808653,-164.26,0.00021,2]
[392493450,1761562808676,-111.68255198,0.00021,2]
[392493452,1761563232406,1000.0,0.00037216,50]
[392493453,1761563233489,1000.0,0.00037216,50]
[392493454,1761563234358,1000.0,0.00037216,50]
[392493455,1761563240587,1000.0,0.00037216,50]
[392493456,1761563241464,1000.0,0.00037216,50]
[392493457,1761563242176,1000.0,0.00037216,50]
[392493458,1761563242734,1000.0,0.00037216,50]
[392493459,1761563243208,1000.0,0.00037216,50]
[392493460,1761563243603,1000.0,0.00037216,50]
[392493461,1761563244148,1000.0,0.00037216,50]
[392493462,1761563244176,-38.31744802,0.00021,2]
[392493463,1761563244198,-151.0,0.00024832,60]
[392493464,1761563244218,-500.0,0.00024932,2]
[392493465,1761563244239,-250.0,0.00026493,2]
[392493466,1761563244259,-150.0,0.00027764,2]
[392493467,1761563244279,-324.0,0.00027764,2]
[392493468,1761563244300,-151.0,0.00031,2]
[392493469,1761563244320,-9.95126654,0.00031,2]
[392493470,1761563246133,-183.86870761,0.00031,2]
[392493471,1761563246153,-174.89305555,0.00031,2]
[392493472,1761563246174,-302.929,0.00032,2]
[392493473,1761563246199,-70.16397798,0.00032,120]
[392493474,1761563263524,1000.0,0.00037216,50]
[392493475,1761563264408,1000.0,0.00037216,50]
[392493476,1761563265070,1000.0,0.00037216,50]
[392493477,1761563265469,1000.0,0.00037216,50]
[392493478,1761563266607,1000.0,0.00037216,50]
[392493479,1761563268132,1000.0,0.00037216,50]
[392493480,1761563272907,739.66,0.00037216,50]
[392493482,1761563332814,414.94,0.00013699,2]
[392493483,1761563333019,414.94,0.00020187,2]
[392493485,1761563349113,-414.94,0.00026676,2]
[392493486,1761563349134,-103.87006392,0.00032,120]
[392493487,1761563349154,-161.51664512,0.00032,2]
[392493488,1761563349185,-182.51,0.00032213,2]
[392493489,1761563349225,-174.0340419,0.00033,120]
[392493490,1761563355084,151.0,0.00032213,2]
[392493491,1761563363113,-414.94,0.00033165,2]
[392493492,1761563363138,-500.0,0.000332,2]
[392493493,1761563363158,-150.0,0.0003346,4]
[392493494,1761563363178,-150.0,0.0003346,4]
[392493495,1761563363198,-150.0,0.0003346,4]
[392493496,1761563363219,-150.0,0.0003346,4]
[392493497,1761563363238,-150.0,0.0003346,4]
[392493498,1761563363257,-150.0,0.0003346,4]
[392493499,1761563363277,-150.0,0.0003346,4]
[392493500,1761563379242,174.0340419,0.00032,120]
[392493501,1761563379847,174.0340419,0.00033,120]
[392493504,1761563431821,-1280.82749217,0.0003356,2]
[392493505,1761563431875,-2583.5170317,0.0003356,2]
[392493506,1761563431993,-1703.34552513,0.0003356,2]
[392493507,1761563432003,-200.0,0.00033729,3]
[392493508,1761563432013,-174.0340419,0.000339,120]
[392493509,1761563432023,-1600.0,0.00034524,3]
[392493510,1761563432033,-400.0,0.00034699,3]
[392493511,1761563432042,-2000.0,0.000347,2]
[392493512,1761563432052,-951.82,0.00035024,2]
[392493513,1761563432061,-1000.0,0.00035083,2]
[392493514,1761563432070,-200.0,0.00035121,2]
[392493515,1761563432080,-2232.39,0.00035247,37]
[392493516,1761563432089,-1479.74,0.00035309,2]
[392493517,1761563432098,-213.53,0.00035411,2]
[392493518,1761563432108,-150.0,0.00035419,2]
[392493519,1761563432118,-150.0,0.00035419,120]
[392493520,1761563432127,-150.0,0.00035503,2]
[392493521,1761563432136,-300.0,0.00035616,120]
[392493522,1761563432147,-182.51,0.00035637,2]
[392493523,1761563432156,-218.28,0.00036075,14]
[392493524,1761563432174,-151.0,0.00036075,2]
[392493525,1761563432185,-151.0,0.00036075,2]
[392493526,1761563432195,-151.0,0.00036075,2]
[392493527,1761563432205,-151.0,0.00036075,2]
[392493528,1761563432215,-151.0,0.00036075,2]
[392493529,1761563432224,-151.0,0.00036075,2]
[392493530,1761563432234,-151.0,0.00036075,2]
[392493531,1761563432244,-151.0,0.00036075,2]
[392493532,1761563432254,-151.0,0.00036075,2]
[392493533,1761563432263,-151.0,0.00036075,2]
[392493534,1761563432273,-151.0,0.00036075,2]
[392493535,1761563432283,-151.0,0.00036075,2]
[392493536,1761563432292,-151.0,0.00036075,2]
[392493537,1761563432302,-151.0,0.00036075,2]
[392493538,1761563432311,-151.0,0.00036075,2]
[392493539,1761563432321,-151.0,0.00036075,2]
[392493540,1761563432330,-151.0,0.00036075,2]
[392493541,1761563432340,-151.0,0.00036075,2]
[392493542,1761563432350,-151.0,0.00036075,2]
[392493543,1761563432360,-151.0,0.00036075,2]
[392493544,1761563432371,-151.0,0.00036075,2]
[392493545,1761563432381,-151.0,0.00036075,2]
[392493546,1761563432391,-151.0,0.00036075,2]
[392493547,1761563432400,-151.0,0.00036075,2]
[392493548,1761563432410,-151.0,0.00036075,2]
[392493549,1761563432419,-151.0,0.00036075,2]
[392493550,1761563432429,-151.0,0.00036075,2]
[392493551,1761563432438,-151.0,0.00036075,2]
[392493552,1761563432448,-151.0,0.00036075,2]
[392493553,1761563432458,-151.0,0.00036075,2]
[392493554,1761563432468,-151.0,0.00036075,2]
[392493555,1761563432477,-200.0,0.00036075,2]
[392493556,1761563432487,-200.0,0.00036091,2]
[392493557,1761563432497,-9049.52,0.00036097,2]
[392493558,1761563432507,-297.81,0.00036109,2]
[392493559,1761563432516,-329.538,0.00036337,45]
[392493560,1761563432526,-352.48243297,0.00036337,2]
[392493570,1761563439696,-599.33756703,0.00036337,2]
[392493571,1761563439706,-218.28,0.00036349,14]
[392493572,1761563439715,-150.72,0.00036415,2]
[392493573,1761563439724,-568.51945523,0.00036569,2]
[392493574,1761563439734,-218.3,0.00036623,14]
[392493575,1761563439744,-621.72292719,0.00036709,15]
[392493576,1761563439754,-500.0,0.00036709,15]
[392493577,1761563439766,-500.0,0.00036709,15]
[392493578,1761563439778,-500.0,0.00036709,15]
[392493579,1761563439787,-500.0,0.00036709,15]
[392493580,1761563439797,-500.0,0.00036709,15]
[392493581,1761563439808,-500.0,0.00036709,15]
[392493582,1761563439817,-500.0,0.00036709,15]
[392493583,1761563439827,-445.70194099,0.00036709,15]
[392493584,1761563439837,-500.0,0.00036709,15]
[392493585,1761563439846,-500.0,0.00036709,15]
[392493586,1761563439856,-500.0,0.00036709,15]
[392493587,1761563439866,-500.0,0.00036709,15]
[392493588,1761563439876,-500.0,0.00036709,15]
[392493589,1761563439885,-500.0,0.00036709,15]
[392493590,1761563439895,-500.0,0.00036709,15]
[392493591,1761563439904,-500.0,0.00036709,15]
[392493592,1761563439914,-1000.0,0.0003671,2]
[392493593,1761563439924,-279.2671,0.000368,2]
[392493594,1761563439933,-4063.5368,0.000368,2]
[392493595,1761563439944,-4717.25622,0.0003682,2]
[392493596,1761563439956,-1000.0,0.00036831,2]
[392493597,1761563439966,-2073.9338,0.00036831,2]
[392493598,1761563439975,-500.0,0.00036873,5]
[392493599,1761563439984,-167.8322669,0.00036873,5]
[392493600,1761563439994,-501.97542601,0.00036873,5]
[392493601,1761563440004,-12492.09146571,0.00036899,2]
[392493602,1761563440013,-285.0747461,0.00036899,15]
[392493603,1761563440022,-192.21007577,0.00036899,15]
[392493604,1761563440033,-94042.45789544,0.000369,2]
[392493605,1761563440043,-26432.66176789,0.000369,2]
[392493606,1761563440051,-568.51945524,0.00036908,2]
[392493607,1761563440061,-500.0,0.0003693,28]
[392493608,1761563440070,-500.0,0.0003693,2]
[392493609,1761563440080,-500.0,0.0003693,7]
[392493610,1761563440089,-500.0,0.0003693,2]
[392493611,1761563440098,-555.49893252,0.0003693,28]
[392493612,1761563440108,-154966.8851,0.00036931,2]
[392493613,1761563440118,-240.72485512,0.00036935,2]
[392493614,1761563440127,-12693.6204636,0.00036952,4]
[392493615,1761563440137,-3173.4051159,0.00036963,4]
[392493616,1761563440156,-502.58030001,0.00036963,28]
[392493617,1761563440167,-347.56605773,0.00036973,5]
[392493619,1761563440178,-500.0,0.00036973,5]
[392493621,1761563440189,-502.69763553,0.00036973,5]
[392493622,1761563440202,-3173.4051159,0.0003699,4]
[392493623,1761563440212,-161.0,0.00037,50]
[392493624,1761563440222,-161.0,0.00037,50]
[392493626,1761563440233,-462.88846,0.00037,2]
[392493627,1761563440243,-500.0,0.00037,3]
[392493628,1761563440252,-3173.4051159,0.00037065,4]
[392493629,1761563440264,-433.99336788,0.00037073,2]
[392493630,1761563440275,-569.32125143,0.00037073,2]
[392493631,1761563440285,-1121.6051,0.00037075,2]
[392493632,1761563440296,-969.71982128,0.00037075,9]
[392493633,1761563440307,-2160.97773152,0.00037095,2]
[392493634,1761563440317,-3173.4051159,0.00037095,4]
[392493635,1761563440328,-2160.97773151,0.00037106,2]
[392493636,1761563440339,-2160.97773151,0.00037116,2]
[392493637,1761563440349,-3173.4051159,0.00037163,4]
[392493638,1761563440360,-111069.179056,0.00037165,4]
[392493639,1761563440369,-502.87918158,0.00037173,5]
[392493640,1761563440379,-500.0,0.00037173,5]
[392493641,1761563440389,-500.0,0.00037173,5]
[392493642,1761563440398,-500.0,0.00037173,5]
[392493643,1761563440408,-500.0,0.00037173,5]
[392493644,1761563440417,-261.57884123,0.00037173,5]
[392493645,1761563440429,-214.65159289,0.00037174,2]
[392493646,1761563440440,-133703.996399,0.00037175,4]
[392493647,1761563440451,-177.0,0.00037178,120]
[392493648,1761563440461,-500.0,0.00037184,28]
[392493649,1761563440471,-500.0,0.00037184,28]
[392493650,1761563440482,-500.0,0.00037184,28]
[392493651,1761563440493,-500.0,0.00037184,2]
[392493652,1761563440503,-608.57263053,0.00037184,2]
[392493653,1761563440515,-500.0,0.00037184,7]
[392493654,1761563440526,-500.0,0.00037184,7]
[392493655,1761563440536,-13370.3996399,0.00037185,4]
[392493656,1761563440546,-267407.992798,0.00037185,4]
[392493657,1761563440556,-3687.1360922,0.00037187,2]
[392493658,1761563440566,-25589.4933449,0.00037189,2]
[392493659,1761563440575,-677.43752035,0.00037194,10]
[392493660,1761563440713,-500.0,0.00037194,28]
[392493661,1761563440722,-500.0,0.00037194,28]
[392493662,1761563440731,-534.09559345,0.00037194,28]
[392493663,1761563440740,-999.0,0.00037194,120]
[392493664,1761563440749,-7903.87255301,0.00037195,31]
[392493665,1761563440759,-421999.19297626,0.00037195,50]
[392493666,1761563440768,-2562084.98974703,0.00037195,50]
[392493667,1761563440778,-472030.60341952,0.00037195,50]
[392493668,1761563440996,-312.21123889,0.00037195,50]
[392493669,1761563441034,-1016.84796297,0.00037195,50]
[392493670,1761563441045,-3606.64961945,0.00037195,50]
[392493671,1761563441056,-2530.08732892,0.00037195,50]
[392493678,1761563445699,-500.0,0.00036709,15]
[392493679,1761563445709,-102.18278844,0.00036709,15]
[392493680,1761563445720,-277.05843896,0.00036709,15]
[392493681,1761563446166,-120.7587726,0.00036709,15]
[392493682,1761563446176,-470.21157986,0.00036709,15]
[392493684,1761563446195,-29.78842014,0.00036709,15]
[392493685,1761563446205,-500.0,0.00036709,15]
[392493686,1761563446214,-638.31026839,0.00036709,15]
[392493687,1761563446223,-500.0,0.00036899,15]
[392493688,1761563446233,-201.06212718,0.00036899,15]
[392493689,1761563446243,-500.0,0.00036899,15]
[392493690,1761563446252,-6609.93101469,0.00037195,50]
[392493691,1761563446321,-19640.37964637,0.00037195,50]
[392493692,1761563446347,-288.558916,0.00037195,50]
[392493693,1761563588775,2455.719079,7.945e-05,2]
[392493695,1761563901767,150.85210682,0.00037216,120]
[392493696,1761563902677,165.0,0.00037216,50]
[392493697,1761564188008,152.968821,7.945e-05,2]
[392493698,1761564308147,2774.70654689,0.00015,2]
[392493699,1761564308178,6213.27444689,0.00015,2]
[392493700,1761564308215,6213.27444689,0.00015,2]
[392493701,1761564308266,6213.27444689,0.00015,2]
[392493702,1761564308293,6213.27444689,0.00015,2]
[392493703,1761564308319,6213.27444689,0.00015,2]
[392493704,1761564308349,6213.27444689,0.00015,2]
[392493705,1761564308374,6213.27444689,0.00015,2]
[392493706,1761564308403,6213.27444689,0.00015,2]
[392493707,1761564308427,6213.27444689,0.00015,2]
[392493708,1761564308453,20000.0,0.00015,2]
[392493709,1761564308480,100000.0,0.00015,2]
[392493710,1761564308505,100000.0,0.00015,2]
[392493711,1761564308530,100000.0,0.00015,2]
[392493712,1761564308556,100000.0,0.00015,2]
[392493713,1761564308581,100000.0,0.00015,2]
[392493714,1761564308613,5581342.27347405,0.00015,2]
[392493715,1761564323669,-262.17306647,0.00021,2]
[392493716,1761564325743,-261.28385895,0.000175,2]
[392493718,1761564328949,-207.43976122,0.000175,2]
[392493719,1761564330990,-235.74732419,0.000175,2]
[392493720,1761564332540,-194.29388793,0.000175,2]
[392493721,1761564334613,-198.46971435,0.000175,2]
[392493722,1761564337961,-281.67319378,0.000175,2]
[392493723,1761564340630,-337.04751096,0.000175,2]
[392493724,1761564342887,-383.2,0.000175,2]
[392493725,1761564344301,-193.97461119,0.000175,2]
[392493726,1761564347455,-186.250623,0.000175,2]
[392493727,1761564349030,-273.61670987,0.000175,2]
[392493728,1761564351609,-314.65945662,0.000175,2]
[392493729,1761564362618,4397.87573582,8e-05,2]
[392493730,1761564363381,-157.08690379,0.000175,2]
[392493731,1761564365897,-205.8991315,0.000175,2]
[392493732,1761564385741,-316.60898854,0.000175,2]
[392493733,1761564387282,6483.24941854,0.00037225,120]
[392493734,1761564388534,-228.17164035,0.000175,2]
[392493735,1761564391135,-204.23400568,0.000175,2]
[392493736,1761564393135,-156.51,0.000175,2]
[392493737,1761564395323,-158.45030834,0.000175,2]
[392493738,1761564397357,-144.4832565,0.000175,2]
[392493739,1761564397381,-52.80572465,0.0001915,2]
[392493740,1761564413701,-109.47896523,0.0001915,2]
[392493741,1761564413725,-57.21503444,0.0001925,2]
[392493742,1761564415157,-172.32177792,0.0001925,2]
[392493743,1761564417115,5337.04751096,0.000162,5]